bitfinex/quotes_SOLUSD_20260119
["timestamp","ask_amount","ask_price","bid_price","bid_amount"]
[1768824789263,9.87631526,133.77,133.74,9.46746795]
[1768824790649,9.81631526,133.77,133.74,9.46746795]
[1768824791240,9.81631526,133.77,133.75,3.00358483]
[1768824791563,7.4756809,133.77,133.74,6.1565132]
[1768824791742,26.16447509,133.77,133.73,0.14216157]
[1768824792549,26.16447509,133.77,133.72,0.42553223]
[1768824792748,2.46063436,133.76,133.72,3.42911706]
[1768824793049,7.47663551,133.75,133.72,3.42911706]
[1768824793666,9.93726987,133.75,133.72,3.42911706]
[1768824794662,9.93726987,133.75,133.72,0.42553223]
[1768824794969,9.93726987,133.75,133.72,3.57127863]
[1768824796181,2.46063436,133.75,133.73,3.00358483]
[1768824796847,9.93727678,133.75,133.73,3.00358483]
[1768824797870,9.87727677,133.75,133.73,3.00358483]
[1768824799860,2.46063436,133.76,133.73,3.48493844]
[1768824801082,2.46063436,133.75,133.73,3.00358483]
[1768824802561,2.40063433,133.75,133.74,3.00358483]
[1768824803074,2.40063433,133.75,133.73,3.00358483]
[1768824803461,7.4764516,133.76,133.73,3.00358483]
[1768824803663,7.4764516,133.76,133.73,3.54266693]
[1768824804576,9.96527487,133.76,133.73,3.54266693]
[1768824805970,2.48882327,133.75,133.73,3.00358483]
[1768824806271,2.42882326,133.75,133.73,3.00358483]
[1768824807277,2.42882326,133.75,133.72,0.53820428]
[1768824807580,16.38,133.78,133.74,3.00358483]
[1768824807761,5.19117996,133.77,133.74,3.00358483]
[1768824808078,7.68000323,133.76,133.74,3.00358483]
[1768824808260,2.48882327,133.76,133.74,3.00358483]
[1768824808575,2.48882327,133.76,133.72,7.47804444]
[1768824808576,2.48882327,133.78,133.75,3.60048323]
[1768824808874,2.48882327,133.78,133.77,3.00358483]
[1768824809075,7.4739238,133.8,133.77,3.00358483]
[1768824809383,7.47350077,133.81,133.78,3.00358483]
[1768824809565,5.1933917,133.8,133.78,5.62557524]
[1768824809768,7.47350077,133.81,133.78,5.62557524]
[1768824809966,5.19341086,133.8,133.78,5.62557524]
[1768824810274,7.47350077,133.81,133.78,2.62199041]
[1768824810473,5.19349974,133.8,133.78,5.62557524]
[1768824810674,7.47350077,133.81,133.78,5.62557524]
[1768824810874,5.19350227,133.8,133.78,5.62557524]
[1768824811177,2.48882327,133.8,133.78,3.00358483]
[1768824815407,9.96270913,133.8,133.77,2.62199041]
[1768824815582,9.96270913,133.8,133.77,5.62557524]
[1768824816780,9.96270913,133.8,133.78,3.00358483]
[1768824820491,9.96270913,133.8,133.77,2.62199041]
[1768824820784,7.69463354,133.79,133.77,3.00358483]
[1768824820982,2.49487293,133.79,133.77,3.00485914]
[1768824823594,2.49487293,133.79,133.76,2.77506129]
[1768824823774,2.49487293,133.79,133.77,3.00485914]
[1768824832501,9.96933622,133.79,133.77,3.00485914]
[1768824832798,2.56550967,133.78,133.76,3.00485914]
[1768824834298,10.04072443,133.78,133.76,3.00485914]
[1768824842611,7.47468329,133.79,133.77,3.00485914]
[1768824844489,7.47468329,133.79,133.76,2.53060662]
[1768824844691,2.56550967,133.79,133.77,3.00485914]
[1768824846745,2.56550967,133.79,133.77,3.00485914]
[1768824847238,10.04017528,133.79,133.76,2.53060662]
[1768824847441,10.04017528,133.79,133.77,3.00485914]
[1768824849544,2.56550967,133.78,133.77,3.00485914]
[1768824849714,2.56550967,133.78,133.76,5.53546576]
[1768824851539,2.56550967,133.78,133.76,2.53060662]
[1768824851838,2.56550967,133.78,133.76,5.53546576]
[1768824856373,2.56550967,133.78,133.76,2.53060662]
[1768824856576,2.56550967,133.78,133.76,5.53546576]
[1768824857281,2.56550967,133.78,133.76,2.53060662]
[1768824857584,2.56550967,133.78,133.76,5.53546576]
[1768824858486,10.04047691,133.78,133.76,5.53546576]
[1768824858980,10.04047691,133.78,133.74,8.62928139]
[1768824859187,10.04047691,133.78,133.76,3.00485914]
[1768824860680,2.56550967,133.78,133.76,3.00485914]
[1768824860989,2.56550967,133.77,133.76,3.00485914]
[1768824861791,10.04055042,133.78,133.76,3.00485914]
[1768824862890,10.04055042,133.78,133.76,5.5782455]
[1768824863085,2.56550967,133.78,133.76,5.5782455]
[1768824868498,2.56550967,133.78,133.76,2.57338636]
[1768824868701,10.04047804,133.78,133.76,5.5782455]
[1768824868996,2.56550967,133.78,133.76,5.5782455]
[1768824881307,2.56550967,133.78,133.76,2.57338636]
[1768824881608,2.56550967,133.78,133.76,5.5782455]
[1768824882931,2.56550967,133.78,133.76,5.57826184]
[1768824886007,7.47328301,133.81,133.77,5.44677665]
[1768824886190,5.22367406,133.8,133.78,2.44190117]
[1768824886504,5.22367406,133.79,133.78,2.44190117]
[1768824886686,5.22367406,133.79,133.78,5.44677665]
[1768824887712,5.22367406,133.79,133.78,5.41677665]
[1768824890608,5.22367406,133.79,133.78,2.41190117]
[1768824891389,12.69807423,133.79,133.77,5.44677665]
[1768824891711,7.47440017,133.79,133.77,5.44677665]
[1768824895498,9.97994647,133.8,133.77,5.44677665]
[1768824895699,5.22137579,133.79,133.77,5.44677665]
[1768824895900,9.97994647,133.8,133.77,5.44677665]
[1768824896101,5.22137833,133.79,133.78,3.00487548]
[1768824896802,5.22137833,133.79,133.77,2.44190117]
[1768824897007,9.97994647,133.8,133.78,3.00487548]
[1768824897206,5.22116353,133.79,133.78,3.00487548]
[1768824897407,5.22116353,133.79,133.77,2.44190117]
[1768824897711,9.97994647,133.8,133.77,5.44677665]
[1768824897938,12.69591687,133.79,133.77,5.44677665]
[1768824898113,7.47440071,133.79,133.77,5.44677665]
[1768824900227,7.47382582,133.81,133.79,2.54911616]
[1768824900529,5.22102852,133.8,133.78,3.00487548]
[1768824900712,5.22102852,133.79,133.78,3.00487548]
[1768824901025,10.03517,133.81,133.78,3.00487548]
[1768824901628,2.56134418,133.83,133.8,3.00487548]
[1768824902334,2.56134418,133.83,133.8,5.55399164]
[1768824903733,7.47272455,133.82,133.8,2.54911616]
[1768824904424,7.47272455,133.82,133.79,3.00487548]
[1768824904425,10.03406873,133.82,133.79,5.55399164]
[1768824904743,7.47272455,133.82,133.8,2.54911616]
[1768824905941,7.47272455,133.82,133.77,13.57415564]
[1768824905942,2.56134418,133.82,133.77,2.69127773]
[1768824906140,2.56134418,133.82,133.76,16.38]
[1768824906141,2.56134418,133.8,133.76,3.00487548]
[1768824906434,2.56134418,133.79,133.75,2.54911616]
[1768824906603,2.56134418,133.79,133.76,2.54911616]
[1768824907025,2.50134419,133.79,133.76,2.54911616]
[1768824907436,9.97586378,133.79,133.76,2.54911616]
[1768824907841,7.47451959,133.79,133.76,2.54911616]
[1768824908208,10.47939507,133.79,133.75,2.54911616]
[1768824908534,3.00487548,133.78,133.72,2.54911616]
[1768824908712,3.00487548,133.77,133.73,2.54911616]
[1768824909028,2.56134418,133.76,133.73,2.54911616]
[1768824909806,10.03747305,133.76,133.73,2.54911616]
[1768824911121,10.03747305,133.76,133.73,5.55399164]
[1768824911512,2.56134418,133.76,133.73,5.55399164]
[1768824915049,2.56134418,133.77,133.75,3.00487548]
[1768824915938,10.03643074,133.78,133.75,5.55399164]
[1768824917026,2.56134418,133.78,133.75,3.00487548]
[1768824917219,10.03582779,133.79,133.76,5.55399164]
[1768824917420,2.56134418,133.79,133.76,5.55399164]
[1768824919129,2.56134418,133.79,133.76,10.02512183]
[1768824919330,7.47390514,133.8,133.77,2.54911616]
[1768824919530,10.0348764,133.81,133.77,5.55399164]
[1768824919835,7.61192674,133.8,133.77,5.55399164]
[1768824920037,2.56134418,133.8,133.77,5.55399164]
[1768824922552,2.56134418,133.8,133.77,13.02949612]
[1768824924343,2.56134418,133.8,133.77,10.02462064]
[1768824924646,2.56134418,133.8,133.77,13.02949612]
[1768824926723,2.52908623,133.81,133.78,5.42760787]
[1768824926941,2.52908623,133.81,133.78,12.9025432]
[1768824927120,2.52908623,133.81,133.79,3.00487548]
[1768824927972,2.52908623,133.82,133.79,5.42760787]
[1768824929742,2.52908623,133.82,133.79,12.90175925]
[1768824929934,2.52908623,133.84,133.8,5.42760787]
[1768824931736,2.52908623,133.83,133.8,5.42760787]
[1768824933650,2.32677342,133.83,133.8,5.42760787]
[1768824936350,2.32677342,133.83,133.8,2.42273239]
[1768824939233,2.32677342,133.83,133.79,5.42760787]
[1768824939234,2.38889985,133.82,133.79,5.42760787]
[1768824939437,2.38889985,133.82,133.79,12.90194012]
[1768824943154,2.38720566,133.83,133.81,2.46106986]
[1768824943344,2.38720566,133.85,133.81,5.46594534]
[1768824944462,9.85864809,133.85,133.81,5.46594534]
[1768824944766,2.38687841,133.84,133.81,5.46594534]
[1768824944953,2.38687841,133.84,133.81,5.46409759]
[1768824947476,9.85851174,133.84,133.81,5.46409759]
[1768824948675,2.38687841,133.84,133.81,5.46409759]
[1768824948974,2.38687841,133.84,133.81,12.93719664]
[1768824951079,2.38499234,133.85,133.82,5.46409759]
[1768824953782,2.38499234,133.85,133.83,2.54628773]
[1768824953990,2.38499234,133.85,133.82,5.54931546]
[1768824956588,2.38499234,133.85,133.82,2.54628773]
[1768824956775,2.38499234,133.85,133.82,5.54931546]
[1768824958780,18.74239739,133.86,133.83,2.54628773]
[1768824959562,18.74239739,133.86,133.83,5.54931546]
[1768824961587,26.21290745,133.86,133.83,5.51931546]
[1768824961753,2.41159066,133.85,133.83,2.51628773]
[1768824964078,2.41159066,133.85,133.83,5.48931546]
[1768824966083,2.44030671,133.86,133.83,5.48931546]
[1768824966285,2.44030671,133.86,133.84,3.00302773]
[1768824966584,2.44030671,133.86,133.85,3.00302773]
[1768824968285,2.44030671,133.86,133.84,5.54931546]
[1768824968989,18.79983314,133.87,133.84,5.54931546]
[1768824969167,18.79983314,133.87,133.85,3.00302773]
[1768824969563,18.79983314,133.87,133.84,5.54931546]
[1768824970390,2.43983314,133.87,133.85,3.00302773]
[1768824970574,2.43983314,133.87,133.84,5.54931546]
[1768824972694,26.2685092,133.88,133.85,2.54628773]
[1768824972892,26.2685092,133.88,133.85,5.54931546]
[1768824974091,2.43874416,133.87,133.85,2.54628773]
[1768824974395,2.43874416,133.87,133.85,5.54931546]
[1768824975193,2.43832588,133.9,133.87,2.54628773]
[1768824975398,2.43832588,133.9,133.87,5.51931546]
[1768824976186,9.90670378,133.9,133.87,5.51931546]
[1768824976493,9.90670378,133.9,133.87,2.51628773]
[1768824976700,2.46812034,133.89,133.87,5.51931546]
[1768824976888,2.46812034,133.89,133.87,2.51628773]
[1768824977086,2.46812034,133.89,133.87,5.51931546]
[1768824978015,2.46812034,133.89,133.87,3.00302773]
[1768824979392,26.29536029,133.91,133.88,5.54931546]
[1768824979696,2.56751777,133.92,133.9,3.00302773]
[1768824979902,2.56751777,133.92,133.89,2.54628773]
[1768824980103,2.56751777,133.92,133.9,3.00302773]
[1768824980897,2.56751777,133.92,133.91,3.00302773]
[1768824982001,0.1,133.92,133.91,5.54931546]
[1768824982299,0.1,133.93,133.91,5.54931546]
[1768824982608,2.56698572,133.93,133.91,5.54931546]
[1768824983189,2.56698572,133.93,133.91,3.00302773]
[1768824985805,10.03359966,133.93,133.91,3.00302773]
[1768824986109,2.51841793,133.94,133.92,2.52811844]
[1768824986300,2.51841793,133.94,133.91,3.00302773]
[1768824987516,9.9844745,133.94,133.91,3.00302773]
[1768824987895,9.9844745,133.94,133.91,2.97302773]
[1768824988410,9.9844745,133.94,133.91,5.50114617]
[1768824991416,9.9844745,133.94,133.92,3.00302773]
[1768824995020,9.9844745,133.94,133.91,5.53114617]
[1768824995190,9.9844745,133.94,133.89,7.46860069]
[1768824995191,2.41841793,133.93,133.9,5.53114617]
[1768824995606,2.41841793,133.93,133.91,2.52811844]
[1768824996725,2.41841793,133.92,133.89,2.52811844]
[1768824997020,9.8851418,133.93,133.9,5.53114617]
[1768824998724,9.8851418,133.93,133.9,2.52811844]
[1768825000410,2.61588298,133.92,133.89,5.44543599]
[1768825000616,2.61588298,133.92,133.89,2.44240826]
[1768825000817,10.08335294,133.92,133.89,5.44543599]
[1768825001314,10.08335294,133.92,133.9,2.44240826]
[1768825007311,10.08335294,133.92,133.89,2.44240826]
[1768825009229,2.61588298,133.91,133.89,2.44240826]
[1768825009929,2.61588298,133.91,133.88,5.44187842]
[1768825010542,2.61588298,133.91,133.88,2.99947016]
[1768825010712,2.61588298,133.91,133.89,2.44240826]
[1768825011108,10.08381632,133.91,133.88,5.44187842]
[1768825012518,10.08381632,133.91,133.88,2.44240826]
[1768825015538,2.61588298,133.91,133.88,2.44240826]
[1768825021446,2.61588298,133.91,133.88,9.91176866]
[1768825022745,2.61588298,133.91,133.88,2.44240826]
[1768825031250,10.08359962,133.91,133.88,2.44240826]
[1768825033737,2.48104874,133.9,133.86,2.42938347]
[1768825033931,2.48104874,133.9,133.85,2.42938347]
[1768825034136,2.48104874,133.89,133.86,2.42938347]
[1768825034540,2.48104874,133.89,133.86,5.42885363]
[1768825036563,9.95029075,133.89,133.86,5.42885363]
[1768825037461,9.95029075,133.89,133.86,2.42938347]
[1768825040957,2.48104874,133.88,133.84,2.42938347]
[1768825041136,2.48104874,133.88,133.85,2.42938347]
[1768825042860,9.99212493,133.87,133.85,2.42938347]
[1768825048567,9.99212493,133.87,133.84,2.99947016]
[1768825050568,9.99212493,133.87,133.84,2.44557818]
[1768825050763,9.99212493,133.87,133.84,5.44504834]
[1768825052568,9.99212493,133.87,133.84,2.44557818]
[1768825052868,7.46964898,133.88,133.86,2.44557818]
[1768825053169,2.52219142,133.89,133.87,5.44504834]
[1768825053170,7.46906983,133.89,133.87,5.44504834]
[1768825055173,7.40906984,133.89,133.87,5.44504834]
[1768825055869,2.52219142,133.9,133.88,5.44504834]
[1768825056056,7.46777672,133.91,133.89,2.99947016]
[1768825056255,2.52219142,133.92,133.89,5.44504834]
[1768825056769,2.52219142,133.92,133.91,2.99947016]
[1768825056971,2.52219142,133.92,133.9,2.99947016]
[1768825057367,9.98941225,133.92,133.9,2.99947016]
[1768825058469,23.82671755,133.93,133.91,2.99947016]
[1768825058658,7.46671755,133.93,133.91,2.99947016]
[1768825059468,0.1,133.94,133.92,5.62807693]
[1768825059661,7.46583508,133.95,133.93,2.99947016]
[1768825060378,26.37119993,133.96,133.94,2.99947016]
[1768825060679,2.54601628,133.96,133.94,5.62807693]
[1768825060858,0.1,133.96,133.94,5.62807693]
[1768825061054,2.44601628,133.97,133.91,29.13639283]
[1768825061258,10.01021137,133.98,133.95,5.62807693]
[1768825061461,2.44601628,133.97,133.95,5.62807693]
[1768825062285,2.44601628,133.97,133.95,2.99947016]
[1768825064679,9.91045973,133.97,133.95,2.99947016]
[1768825065263,9.91045973,133.97,133.94,5.62807693]
[1768825065463,2.44601628,133.96,133.94,5.62807693]
[1768825065679,9.91096413,133.96,133.94,2.99947016]
[1768825066382,2.44601628,133.96,133.94,2.99947016]
[1768825066976,2.44601628,133.96,133.94,2.99723886]
[1768825069561,2.44601628,133.96,133.93,2.62860677]
[1768825069775,2.44601628,133.96,133.93,5.62584563]
[1768825070084,2.44601628,133.96,133.94,2.99723886]
[1768825070485,2.44601628,133.96,133.93,2.62860677]
[1768825070667,2.44601628,133.96,133.94,2.99723886]
[1768825071762,9.91119789,133.96,133.93,5.62584563]
[1768825072463,9.91119789,133.96,133.94,2.99723886]
[1768825075580,7.46435769,133.97,133.95,2.37315078]
[1768825075773,9.9142126,133.97,133.94,5.37038964]
[1768825076283,9.9142126,133.97,133.95,2.99723886]
[1768825078484,9.9142126,133.97,133.94,2.37315078]
[1768825078787,9.9142126,133.97,133.95,2.99723886]
[1768825080476,9.9142126,133.97,133.94,2.37315078]
[1768825080779,9.9142126,133.97,133.95,2.99723886]
[1768825080984,2.44985491,133.96,133.93,2.37315078]
[1768825081169,2.44985491,133.96,133.94,2.99723886]
[1768825081371,2.44985491,133.96,133.93,5.37038964]
[1768825081784,2.44985491,133.96,133.93,2.37315078]
[1768825081982,2.44985491,133.96,133.92,5.37038964]
[1768825083490,7.46547219,133.95,133.92,5.37038964]
[1768825083787,9.9153271,133.95,133.92,5.37038964]
[1768825085486,9.9153271,133.95,133.92,2.37315078]
[1768825087380,9.9153271,133.95,133.92,5.37038964]
[1768825089993,9.9153271,133.95,133.92,2.37315078]
[1768825090294,9.9153271,133.95,133.92,5.37038964]
[1768825091781,9.9153271,133.95,133.92,2.37315078]
[1768825091984,9.9153271,133.95,133.92,5.37038964]
[1768825092492,9.9153271,133.95,133.92,2.37315078]
[1768825092794,9.9153271,133.95,133.92,5.37038964]
[1768825093188,9.9153271,133.95,133.92,2.37315078]
[1768825093396,9.9153271,133.95,133.92,5.37038964]
[1768825100618,9.9153271,133.95,133.92,2.37315078]
[1768825100798,2.44985491,133.94,133.92,2.99723886]
[1768825101397,2.44985491,133.94,133.92,5.37038964]
[1768825102999,2.49127319,133.93,133.9,5.50069697]
[1768825104897,9.95812693,133.93,133.9,5.50069697]
[1768825107804,9.95812693,133.93,133.91,2.99723886]
[1768825108307,26.31674538,133.95,133.92,5.50069697]
[1768825109703,2.49127319,133.94,133.92,2.99723886]
[1768825110702,9.95744225,133.94,133.92,2.99723886]
[1768825111205,9.95744225,133.94,133.92,5.50069697]
[1768825111796,9.95744225,133.94,133.92,2.99723886]
[1768825113208,9.95744225,133.94,133.91,5.50069697]
[1768825113908,9.95791716,133.93,133.9,5.50069697]
[1768825115914,9.95791716,133.93,133.91,2.99723886]
[1768825118113,9.95791716,133.93,133.9,2.50345811]
[1768825118302,9.95791716,133.93,133.91,2.99723886]
[1768825120126,26.34142634,133.96,133.93,2.50419795]
[1768825120293,9.98142634,133.96,133.94,2.50419795]
[1768825120491,9.98142634,133.96,133.94,5.50143681]
[1768825121115,9.98142634,133.96,133.94,2.99723886]
[1768825121292,9.98142634,133.96,133.93,5.50143681]
[1768825123014,9.98142634,133.96,133.93,2.50419795]
[1768825123210,9.98142634,133.96,133.93,5.50143681]
[1768825124115,2.51651145,133.95,133.92,5.50143681]
[1768825126025,9.98198551,133.95,133.92,5.50143681]
[1768825126317,9.98198551,133.95,133.93,2.50419795]
[1768825126617,9.98198551,133.95,133.92,5.50143681]
[1768825126991,9.98198551,133.95,133.92,5.50200485]
[1768825127906,9.98198551,133.95,133.93,2.50419795]
[1768825133619,7.46547406,133.95,133.93,5.50200485]
[1768825133917,7.46506191,133.96,133.94,2.36738167]
[1768825136618,9.87010971,133.96,133.93,5.36518857]
[1768825140328,9.87010971,133.96,133.93,2.36738167]
[1768825145932,5.14368246,133.95,133.93,2.36738167]
[1768825146118,9.87010971,133.96,133.93,2.36738167]
[1768825146324,5.14352776,133.95,133.93,2.36738167]
[1768825146523,9.87010971,133.96,133.93,2.36738167]
[1768825146736,5.14360551,133.95,133.93,2.36738167]
[1768825147030,9.87010971,133.96,133.93,2.36738167]
[1768825147237,12.6091074,133.95,133.93,2.36738167]
[1768825147433,7.46549983,133.95,133.93,2.36738167]
[1768825148240,2.4050478,133.95,133.93,2.36738167]
[1768825148740,2.4050478,133.95,133.92,2.9978069]
[1768825150142,9.87054177,133.95,133.91,7.46764545]
[1768825150344,9.87054177,133.95,133.92,2.9978069]
[1768825150830,9.87054177,133.95,133.93,2.36738167]
[1768825151839,9.87054177,133.95,133.92,2.9978069]
[1768825152047,9.87054177,133.95,133.92,2.36738167]
[1768825152340,9.87054177,133.95,133.92,5.36518857]
[1768825152545,2.4050478,133.94,133.91,2.36738167]
[1768825152745,7.54949097,133.94,133.91,2.36738167]
[1768825152918,2.4050478,133.94,133.91,2.36738167]
[1768825153627,9.87142013,133.94,133.91,2.36738167]
[1768825154029,9.87142013,133.94,133.91,5.36518857]
[1768825155117,7.46637233,133.94,133.92,5.36518857]
[1768825155417,7.46568529,133.95,133.93,2.36738167]
[1768825156139,9.87073309,133.95,133.93,2.36738167]
[1768825157541,9.87073309,133.95,133.93,2.33738167]
[1768825158147,5.14538504,133.94,133.93,2.33738167]
[1768825158439,7.55043284,133.94,133.91,2.9978069]
[1768825158619,2.4050478,133.94,133.91,2.9978069]
[1768825159541,2.4050478,133.94,133.92,2.36738167]
[1768825160051,2.4050478,133.94,133.91,2.36738167]
[1768825160223,2.4050478,133.94,133.91,5.36518857]
[1768825160422,9.87110504,133.94,133.91,5.36518857]
[1768825161747,2.4050478,133.93,133.9,2.36738167]
[1768825161956,2.4050478,133.93,133.91,2.36738167]
[1768825162443,9.87189876,133.93,133.9,5.36518857]
[1768825164038,9.87189876,133.93,133.9,2.36738167]
[1768825164246,5.15013757,133.92,133.9,5.36518857]
[1768825164550,9.87189876,133.93,133.9,5.36518857]
[1768825164754,5.15012023,133.92,133.9,5.36518857]
[1768825164952,9.87189876,133.93,133.9,5.36518857]
[1768825165142,5.14941469,133.92,133.9,5.36518857]
[1768825165346,9.87189876,133.93,133.9,5.36518857]
[1768825165545,5.14935637,133.92,133.9,5.36518857]
[1768825165842,9.87189876,133.93,133.9,5.36518857]
[1768825166032,5.1493589,133.92,133.9,5.36518857]
[1768825166232,9.87189876,133.93,133.9,5.36518857]
[1768825167156,9.87189876,133.93,133.91,2.9978069]
[1768825167657,7.46685096,133.93,133.91,5.33152775]
[1768825167857,7.46685096,133.93,133.91,2.33372085]
[1768825168034,7.46605701,133.94,133.93,2.33372085]
[1768825168235,5.14738553,133.94,133.93,2.30372085]
[1768825168437,5.14738553,133.94,133.93,2.27372085]
[1768825168637,5.14738553,133.94,133.92,2.9978069]
[1768825168839,9.86460565,133.95,133.92,2.9978069]
[1768825169053,5.14705431,133.94,133.92,2.9978069]
[1768825169259,9.86460565,133.95,133.92,2.9978069]
[1768825169567,5.1470405,133.94,133.92,2.9978069]
[1768825169747,9.86460565,133.95,133.92,2.9978069]
[1768825169949,5.1470553,133.94,133.92,2.9978069]
[1768825170148,9.86460565,133.95,133.92,2.9978069]
[1768825170350,5.14703858,133.94,133.92,2.9978069]
[1768825170551,9.86460565,133.95,133.92,5.33152775]
[1768825170762,5.14703858,133.94,133.92,5.33152775]
[1768825170960,9.86460565,133.95,133.92,5.33152775]
[1768825171137,7.54597002,133.94,133.92,2.33372085]
[1768825171342,2.39893396,133.94,133.92,2.33372085]
[1768825171668,9.86460565,133.95,133.92,2.33372085]
[1768825171970,5.1470167,133.94,133.92,5.33152775]
[1768825172172,9.86460565,133.95,133.92,5.33152775]
[1768825172344,5.14701593,133.94,133.92,5.33152775]
[1768825172671,9.86460565,133.95,133.92,2.33372085]
[1768825172875,5.14701341,133.94,133.92,2.33372085]
[1768825173164,9.86460565,133.95,133.92,2.33372085]
[1768825173350,5.14699927,133.94,133.92,2.33372085]
[1768825173550,9.86460565,133.95,133.92,2.33372085]
[1768825173751,5.14700178,133.94,133.92,2.33372085]
[1768825174067,2.39893396,133.94,133.91,2.33372085]
[1768825175274,9.86522956,133.94,133.91,2.33372085]
[1768825175773,2.39893396,133.93,133.91,2.33372085]
[1768825176072,2.39893396,133.93,133.9,2.33372085]
[1768825176073,7.54059739,133.93,133.9,2.33372085]
[1768825176367,2.39893396,133.93,133.9,2.33372085]
[1768825177077,2.39893396,133.92,133.9,2.33372085]
[1768825177263,2.39893396,133.92,133.9,2.30372085]
[1768825178406,2.39893396,133.92,133.9,2.27372085]
[1768825179787,23.82624138,133.94,133.91,2.9978069]
[1768825180084,5.14081149,133.93,133.92,2.9978069]
[1768825180482,5.14081149,133.93,133.92,5.55317419]
[1768825181784,5.14056058,133.93,133.92,5.55317419]
[1768825181980,9.84971017,133.95,133.92,5.55317419]
[1768825182164,5.1398182,133.94,133.92,5.55317419]
[1768825182475,9.84971017,133.95,133.92,5.55317419]
[1768825182678,5.1398753,133.94,133.92,5.55317419]
[1768825182877,9.84971017,133.95,133.92,5.55317419]
[1768825183079,5.13995052,133.94,133.92,5.55317419]
[1768825183377,9.84971017,133.95,133.92,5.55317419]
[1768825183555,5.14010463,133.94,133.92,5.55317419]
[1768825183757,9.84971017,133.95,133.92,5.55317419]
[1768825183953,5.14010463,133.94,133.92,5.52317419]
[1768825184160,9.84971017,133.95,133.92,5.52317419]
[1768825184369,5.14026819,133.94,133.92,5.52317419]
[1768825184571,9.84971017,133.95,133.92,5.52317419]
[1768825184878,5.14027098,133.94,133.92,5.52317419]
[1768825185085,9.84971017,133.95,133.92,5.52317419]
[1768825185288,5.14036506,133.94,133.92,5.52317419]
[1768825185492,9.84971017,133.95,133.92,5.52317419]
[1768825185655,9.84971017,133.95,133.92,2.52536729]
[1768825185656,5.14045108,133.94,133.92,2.52536729]
[1768825185856,9.84971017,133.95,133.92,2.52536729]
[1768825186072,5.14045108,133.94,133.92,2.52536729]
[1768825186355,9.84971017,133.95,133.92,2.52536729]
[1768825186555,5.14061761,133.94,133.92,2.52536729]
[1768825186885,9.84971017,133.95,133.92,2.52536729]
[1768825187180,2.3840938,133.93,133.9,2.55536729]
[1768825187491,5.1418744,133.92,133.9,2.55536729]
[1768825187659,2.3840938,133.93,133.9,2.55536729]
[1768825187859,5.1418744,133.92,133.9,2.55536729]
[1768825188078,2.3840938,133.93,133.9,2.55536729]
[1768825188260,7.52584953,133.92,133.9,2.55536729]
[1768825188459,2.3840938,133.92,133.9,2.55536729]
[1768825190776,9.85098921,133.93,133.9,2.55536729]
[1768825190980,5.14147269,133.92,133.9,5.55415559]
[1768825191174,9.85098921,133.93,133.9,2.55536729]
[1768825191481,9.85098921,133.93,133.9,5.55415559]
[1768825192480,9.85098921,133.93,133.91,2.9987883]
[1768825193280,10.01411154,133.94,133.92,5.54455334]
[1768825193453,5.14151345,133.93,133.92,5.54455334]
[1768825194380,5.14151345,133.93,133.92,2.9987883]
[1768825194776,5.14151345,133.93,133.92,5.54455334]
[1768825195169,5.14151345,133.93,133.92,2.9987883]
[1768825195870,5.14151345,133.93,133.92,5.54455334]
[1768825197184,10.0135378,133.95,133.92,5.54455334]
[1768825201398,10.0135378,133.95,133.92,5.54455334]
[1768825201682,10.0135378,133.95,133.92,2.54576504]
[1768825201893,10.0135378,133.95,133.92,5.54455334]
[1768825202279,10.0135378,133.95,133.92,2.54576504]
[1768825202481,10.0135378,133.95,133.92,5.54455334]
[1768825205566,2.54781451,133.94,133.91,2.54576504]
[1768825205768,2.54781451,133.94,133.91,5.54455334]
[1768825209398,10.01427118,133.94,133.91,5.54455334]
[1768825210803,2.54781451,133.93,133.91,5.54455334]
[1768825211299,2.54781451,133.93,133.91,2.54576504]
[1768825211505,2.54781451,133.93,133.91,5.54455334]
[1768825213504,10.01450234,133.93,133.91,5.54455334]
[1768825214085,2.54781451,133.92,133.9,2.9987883]
[1768825214292,2.54781451,133.92,133.89,5.54455334]
[1768825214485,2.54781451,133.92,133.9,2.54576504]
[1768825215222,2.54781451,133.92,133.89,5.54455334]
[1768825215710,10.01543521,133.92,133.89,5.54455334]
[1768825217096,10.01543521,133.92,133.89,2.54576504]
[1768825217395,10.01543521,133.92,133.89,5.54455334]
[1768825218208,10.01543521,133.92,133.89,2.54576504]
[1768825218391,10.01543521,133.92,133.89,5.54455334]
[1768825229816,10.01543521,133.92,133.89,2.54576504]
[1768825233225,10.01543521,133.92,133.89,5.54455334]
[1768825233922,2.32773285,133.94,133.91,5.33698919]
[1768825235114,9.79390747,133.94,133.91,5.33698919]
[1768825238026,9.79390747,133.94,133.91,2.33820089]
[1768825238235,9.79390747,133.94,133.91,5.33698919]
[1768825238894,9.79390747,133.94,133.9,2.9987883]
[1768825238895,2.32773285,133.93,133.9,2.9987883]
[1768825239099,2.32773285,133.93,133.9,5.33698919]
[1768825241503,9.8911679,133.92,133.89,5.47730247]
[1768825241704,9.8911679,133.92,133.9,2.47851417]
[1768825242015,9.8911679,133.92,133.89,5.47730247]
[1768825244519,9.8911679,133.92,133.89,2.47851417]
[1768825246024,9.8911679,133.92,133.89,5.47730247]
[1768825249018,2.42402334,133.91,133.88,2.47851417]
[1768825249352,2.42402334,133.91,133.89,5.47730247]